fUST/lending_fUST_20250726
["ID","MTS","AMOUNT","RATE_DAILY","PERIOD"]
[375077405,1753519838567,-460.0,0.00019178,2]
[375077406,1753519838577,-462.63813508,0.00019178,2]
[375077408,1753519838586,-299.7709777,0.00019178,2]
[375077410,1753519838595,-460.0,0.00019178,2]
[375077412,1753519838604,-460.0,0.00019178,2]
[375077414,1753519838613,-460.0,0.00019178,2]
[375077416,1753519838622,-666.0,0.00019178,2]
[375077418,1753519838632,-588.820717,0.00019178,2]
[375077420,1753519838641,-369.21147807,0.00019215,2]
[375077422,1753519838651,-4091.94517612,0.00019221,2]
[375077424,1753519838662,-590.62,0.00019329,2]
[375077426,1753519838672,-590.62,0.00019329,2]
[375077428,1753519838681,-26821.89858014,0.00019329,2]
[375077455,1753519838918,-1916.76071509,0.00019329,2]
[375077479,1753519839140,-441.2363975,0.00019178,2]
[375077533,1753519840583,-18.7636025,0.00019178,2]
[375077535,1753519840592,-1123.23,0.00019178,2]
[375077537,1753519840603,-698.0063975,0.00019178,2]
[375078085,1753519846588,-500.0,0.00019077,2]
[375078086,1753519846598,-500.0,0.00019077,2]
[375078087,1753519846608,-500.0,0.00019077,2]
[375078088,1753519846619,-500.0,0.00019077,2]
[375078089,1753519846629,-197.86359785,0.00019077,2]
[375078090,1753519846639,-2754.8936025,0.00019178,2]
[375078091,1753519846648,-693.62,0.00019178,2]
[375078092,1753519846657,-319.29680335,0.00019178,2]
[375078093,1753519846667,-2299.01,0.00019178,2]
[375078094,1753519846677,-460.0,0.00019178,2]
[375078095,1753519846692,-153.40204311,0.00019178,2]
[375078096,1753519846702,-460.0,0.00019178,2]
[375078097,1753519846711,-460.0,0.00019178,2]
[375078098,1753519846721,-5054.70788916,0.00019329,2]
[375078099,1753519846731,-369.21147807,0.00019352,2]
[375078100,1753519846740,-165.58,0.00019442,3]
[375078101,1753519846750,-5000.0,0.00019442,2]
[375078102,1753519846760,-500.0,0.00019447,2]
[375078103,1753519846770,-590.62,0.00019451,2]
[375078104,1753519846779,-541.56773622,0.00019451,2]
[375078105,1753519846800,-49.05226378,0.00019451,2]
[375078106,1753519846810,-590.62,0.00019451,2]
[375078107,1753519846819,-239.47773622,0.00019451,2]
[375078484,1753520126829,206.980149,0.00013699,2]
[375078497,1753520830130,-5000.0,0.00017536,2]
[375078498,1753520830152,-500.0,0.00017893,2]
[375078499,1753520830172,-450.64859136,0.00017893,2]
[375078500,1753520830193,-300.0,0.00018069,2]
[375078501,1753520830214,-500.0,0.0001807,2]
[375078502,1753520830235,-500.0,0.0001807,2]
[375078503,1753520830255,-369.88899408,0.0001807,2]
[375078504,1753520830277,-500.0,0.0001807,2]
[375078505,1753520830297,-217.04634423,0.0001807,2]
[375078506,1753520830319,-500.0,0.0001807,2]
[375078507,1753520830340,-500.0,0.0001807,2]
[375078508,1753520830360,-500.0,0.0001807,2]
[375078509,1753520830382,-500.0,0.0001807,2]
[375078510,1753520830403,-500.0,0.0001807,2]
[375078511,1753520830424,-500.0,0.0001807,2]
[375078512,1753520830446,-500.0,0.0001807,2]
[375078513,1753520830467,-500.0,0.0001807,2]
[375078514,1753520830488,-597.80984766,0.0001807,2]
[375078515,1753520830512,-500.0,0.0001807,2]
[375078516,1753520830533,-500.0,0.0001807,2]
[375078517,1753520830555,-500.0,0.0001807,2]
[375078518,1753520830577,-500.0,0.0001807,2]
[375078519,1753520830599,-500.0,0.0001807,2]
[375078520,1753520830621,-500.0,0.0001807,2]
[375078521,1753520830645,-416.85830541,0.0001807,2]
[375078522,1753520830667,-500.0,0.0001807,2]
[375078523,1753520830688,-500.0,0.0001807,2]
[375078524,1753520830711,-500.0,0.0001807,2]
[375078525,1753520830733,-500.0,0.0001807,2]
[375078526,1753520830754,-500.0,0.0001807,2]
[375078527,1753520830776,-500.0,0.0001807,2]
[375078528,1753520830799,-500.0,0.0001807,2]
[375078529,1753520830822,-500.0,0.0001807,2]
[375078530,1753520830843,-500.0,0.0001807,2]
[375078531,1753520830865,-350.86251529,0.0001807,2]
[375078532,1753520830887,-500.0,0.0001807,2]
[375078533,1753520830908,-500.0,0.0001807,2]
[375078534,1753520831043,-500.0,0.0001807,2]
[375078535,1753520831068,-500.0,0.0001807,2]
[375078536,1753520831089,-500.0,0.0001807,2]
[375078537,1753520831113,-500.0,0.0001807,2]
[375078538,1753520831134,-500.0,0.0001807,2]
[375078539,1753520831170,-500.0,0.0001807,2]
[375078540,1753520831194,-500.0,0.0001807,2]
[375078541,1753520831219,-500.0,0.0001807,2]
[375078542,1753520831246,-500.0,0.0001807,2]
[375078543,1753520831268,-244.34322019,0.0001807,2]
[375078544,1753520831290,-500.0,0.0001807,2]
[375078545,1753520831312,-500.0,0.0001807,2]
[375078546,1753520831333,-500.0,0.0001807,2]
[375078547,1753520831355,-500.0,0.0001807,2]
[375078548,1753520831376,-500.0,0.0001807,2]
[375078549,1753520831398,-500.0,0.0001807,2]
[375078550,1753520831419,-500.0,0.0001807,2]
[375078551,1753520831440,-500.0,0.0001807,2]
[375078552,1753520831461,-342.18951879,0.0001807,2]
[375078554,1753520945128,-300.0,0.00018068,2]
[375078555,1753520945150,-500.0,0.00018069,2]
[375078556,1753520945171,-500.0,0.00018069,2]
[375078557,1753520945193,-500.0,0.00018069,2]
[375078558,1753520945213,-500.0,0.00018069,2]
[375078559,1753520945234,-500.0,0.00018069,2]
[375078560,1753520945256,-212.98425616,0.00018069,2]
[375078561,1753520945276,-500.0,0.00018069,2]
[375078562,1753520945296,-500.0,0.00018069,2]
[375078563,1753520945317,-500.0,0.00018069,2]
[375078564,1753520945337,-500.0,0.00018069,2]
[375078565,1753520945356,-316.46375511,0.00018069,2]
[375078566,1753520945378,-128.57971462,0.00018069,2]
[375078567,1753520969128,-371.42028538,0.00018069,2]
[375078568,1753520969148,-500.0,0.00018069,2]
[375078569,1753520969171,-500.0,0.00018069,2]
[375078570,1753520969191,-500.0,0.00018069,2]
[375078571,1753520969212,-500.0,0.00018069,2]
[375078572,1753520969232,-459.78098477,0.00018069,2]
[375078573,1753520969253,-8860.20183194,0.0001807,2]
[375078582,1753521031921,-300.0,0.00018069,2]
[375078583,1753521031935,-4952.77797261,0.00018075,2]
[375078587,1753521031975,-19947.22202739,0.00018075,2]
[375078588,1753521031985,-218.28754441,0.000185,2]
[375078589,1753521031995,-198.79463237,0.000189,2]
[375078590,1753521032005,-222.80640868,0.00018978,2]
[375078591,1753521032015,-215.0738,0.00019061,2]
[375078592,1753521032024,-154.9,0.00019068,3]
[375078593,1753521032035,-464.7,0.00019068,3]
[375078594,1753521032044,-222.80640867,0.00019072,2]
[375078595,1753521032054,-55955.20705977,0.00019073,2]
[375078597,1753521032065,-22938.64106933,0.00019073,2]
[375078739,1753521037752,-479.6070839,0.00018074,2]
[375078741,1753521037761,-328.86455386,0.00018074,2]
[375078743,1753521037771,-172.46718404,0.00019072,2]
[375078745,1753521037780,-6574.8611782,0.00019073,2]
[375078749,1753521037804,-7675.1032151,0.00019073,2]
[375078751,1753521037813,-17886.15084021,0.00019078,2]
[375078753,1753521037822,-619.6,0.0001916,3]
[375078755,1753521037831,-309.8,0.0001916,3]
[375078757,1753521037840,-222.80640867,0.00019165,2]
[375078759,1753521037850,-5465.89716836,0.00019166,2]
[375078761,1753521037859,-50000.0,0.0001917,2]
[375078763,1753521037868,-500.0,0.00019173,2]
[375078765,1753521037877,-500.0,0.00019173,2]
[375078767,1753521037886,-503.52391057,0.00019173,2]
[375078768,1753521037895,-501.05926252,0.00019173,2]
[375078770,1753521037904,-316.51593058,0.00019178,2]
[375078772,1753521037913,-460.0,0.00019178,2]
[375078774,1753521037925,-460.0,0.00019178,2]
[375078776,1753521037934,-460.0,0.00019178,2]
[375078779,1753521037945,-460.0,0.00019178,2]
[375078781,1753521037955,-460.0,0.00019178,2]
[375078783,1753521037965,-460.0,0.00019178,2]
[375078785,1753521037975,-460.0,0.00019178,2]
[375078787,1753521037984,-509.81638835,0.00019178,2]
[375078788,1753521037993,-460.0,0.00019178,2]
[375078791,1753521038004,-461.1757903,0.00019178,2]
[375078793,1753521038014,-1000.0,0.00019178,2]
[375078795,1753521038023,-460.0,0.00019178,2]
[375078797,1753521038033,-497.28701315,0.00019178,2]
[375078798,1753521038043,-594.16,0.00019178,2]
[375078800,1753521038052,-289.3656507,0.00019178,2]
[375078802,1753521038062,-460.0,0.00019178,2]
[375078804,1753521038071,-460.0,0.00019178,2]
[375078807,1753521038081,-460.0,0.00019178,2]
[375078808,1753521038091,-460.0,0.00019178,2]
[375078810,1753521038100,-460.0,0.00019178,2]
[375078812,1753521038109,-460.0,0.00019178,2]
[375078814,1753521038118,-460.0,0.00019178,2]
[375078816,1753521038127,-460.0,0.00019178,2]
[375078818,1753521038136,-460.0,0.00019178,2]
[375078820,1753521038146,-460.0,0.00019178,2]
[375078822,1753521038155,-460.0,0.00019178,2]
[375078824,1753521038164,-460.0,0.00019178,2]
[375078826,1753521038174,-460.0,0.00019178,2]
[375078828,1753521038183,-460.0,0.00019178,2]
[375078830,1753521038192,-494.15987481,0.00019178,2]
[375078832,1753521038202,-460.0,0.00019178,2]
[375078834,1753521038211,-460.0,0.00019178,2]
[375078836,1753521038223,-321.01917265,0.00019178,2]
[375078838,1753521038233,-502.32230735,0.00019178,2]
[375078841,1753521038243,-460.0,0.00019178,2]
[375078842,1753521038253,-460.0,0.00019178,2]
[375078844,1753521038263,-460.0,0.00019178,2]
[375078846,1753521038273,-460.0,0.00019178,2]
[375078848,1753521038282,-460.0,0.00019178,2]
[375078850,1753521038292,-462.07969999,0.00019178,2]
[375078852,1753521038302,-460.0,0.00019178,2]
[375078854,1753521038311,-460.0,0.00019178,2]
[375078856,1753521038320,-460.0,0.00019178,2]
[375078858,1753521038330,-460.0,0.00019178,2]
[375078860,1753521038340,-175.92782881,0.00019178,2]
[375078862,1753521038349,-177.31627283,0.00019178,2]
[375078864,1753521038358,-460.0,0.00019178,2]
[375078866,1753521038367,-460.0,0.00019178,2]
[375078868,1753521038376,-460.0,0.00019178,2]
[375078870,1753521038386,-460.0,0.00019178,2]
[375078871,1753521038395,-460.0,0.00019178,2]
[375078873,1753521038404,-460.0,0.00019178,2]
[375078875,1753521038415,-460.0,0.00019178,2]
[375078877,1753521038425,-463.91738592,0.00019178,2]
[375078879,1753521038435,-540.0,0.00019178,2]
[375078881,1753521038445,-460.0,0.00019178,2]
[375078883,1753521038454,-460.0,0.00019178,2]
[375078885,1753521038463,-567.17583937,0.00019178,2]
[375078887,1753521038474,-460.0,0.00019178,2]
[375078889,1753521038483,-460.0,0.00019178,2]
[375078891,1753521038492,-737.58,0.00019178,2]
[375078893,1753521038501,-460.0,0.00019178,2]
[375078895,1753521038510,-461.69748636,0.00019178,2]
[375078897,1753521038520,-460.0,0.00019178,2]
[375078899,1753521038530,-460.0,0.00019178,2]
[375078900,1753521038539,-460.0,0.00019178,2]
[375078902,1753521038548,-460.0,0.00019178,2]
[375078904,1753521038557,-460.0,0.00019178,2]
[375078906,1753521038567,-185.03717849,0.00019178,2]
[375078908,1753521038576,-460.0,0.00019178,2]
[375078910,1753521038586,-460.0,0.00019178,2]
[375078912,1753521038595,-460.0,0.00019178,2]
[375078914,1753521038604,-460.0,0.00019178,2]
[375078916,1753521038614,-461.01094073,0.00019178,2]
[375078918,1753521038623,-460.0,0.00019178,2]
[375078920,1753521038632,-460.0,0.00019178,2]
[375078922,1753521038641,-460.0,0.00019178,2]
[375078924,1753521038651,-460.0,0.00019178,2]
[375078926,1753521038660,-460.0,0.00019178,2]
[375078928,1753521038670,-460.0,0.00019178,2]
[375078930,1753521038679,-460.0,0.00019178,2]
[375078932,1753521038689,-460.0,0.00019178,2]
[375078933,1753521038698,-521.60128296,0.00019178,2]
[375078935,1753521038708,-460.0,0.00019178,2]
[375078937,1753521038718,-533.08958508,0.00019178,2]
[375078939,1753521038728,-546.16877287,0.00019178,2]
[375078941,1753521038737,-460.0,0.00019178,2]
[375078943,1753521038747,-460.0,0.00019178,2]
[375078945,1753521038757,-460.0,0.00019178,2]
[375078947,1753521038767,-460.0,0.00019178,2]
[375078949,1753521038777,-464.16727029,0.00019178,2]
[375078951,1753521038786,-460.0,0.00019178,2]
[375078953,1753521038795,-607.40466244,0.00019178,2]
[375078955,1753521038805,-461.79103662,0.00019178,2]
[375078957,1753521038814,-460.0,0.00019178,2]
[375078959,1753521038824,-460.0,0.00019178,2]
[375078961,1753521038833,-461.74348419,0.00019178,2]
[375078962,1753521038842,-460.0,0.00019178,2]
[375078964,1753521038851,-465.37407882,0.00019178,2]
[375078966,1753521038861,-519.9262,0.00019178,2]
[375078968,1753521038871,-460.0,0.00019178,2]
[375078979,1753521038972,-460.0,0.00019178,2]
[375078981,1753521038983,-460.0,0.00019178,2]
[375078983,1753521038992,-460.0,0.00019178,2]
[375078985,1753521039002,-460.0,0.00019178,2]
[375078987,1753521039012,-626.94853418,0.00019178,2]
[375078989,1753521039022,-460.0,0.00019178,2]
[375078991,1753521039033,-460.0,0.00019178,2]
[375078993,1753521039042,-460.0,0.00019178,2]
[375078995,1753521039052,-460.0,0.00019178,2]
[375078997,1753521039062,-460.0,0.00019178,2]
[375078999,1753521039072,-340.59825927,0.00019178,2]
[375079001,1753521039081,-460.0,0.00019178,2]
[375079003,1753521039090,-460.0,0.00019178,2]
[375079005,1753521039100,-460.0,0.00019178,2]
[375079007,1753521039110,-460.0,0.00019178,2]
[375079008,1753521039119,-460.0,0.00019178,2]
[375079009,1753521039129,-460.0,0.00019178,2]
[375079010,1753521039138,-460.0,0.00019178,2]
[375079011,1753521039148,-460.0,0.00019178,2]
[375079012,1753521039158,-460.0,0.00019178,2]
[375079013,1753521039168,-460.0,0.00019178,2]
[375079014,1753521039178,-460.0,0.00019178,2]
[375079015,1753521039187,-460.0,0.00019178,2]
[375079016,1753521039197,-460.0,0.00019178,2]
[375079017,1753521039206,-460.0,0.00019178,2]
[375079019,1753521039215,-460.0,0.00019178,2]
[375079020,1753521039227,-460.0,0.00019178,2]
[375079021,1753521039237,-620.25,0.00019178,2]
[375079022,1753521039246,-460.0,0.00019178,2]
[375079024,1753521039257,-460.0,0.00019178,2]
[375079026,1753521039266,-460.0,0.00019178,2]
[375079028,1753521039275,-460.0,0.00019178,2]
[375079030,1753521039285,-460.0,0.00019178,2]
[375079032,1753521039295,-460.0,0.00019178,2]
[375079034,1753521039305,-460.0,0.00019178,2]
[375079036,1753521039315,-460.0,0.00019178,2]
[375079038,1753521039325,-460.0,0.00019178,2]
[375079040,1753521039335,-419.03180429,0.00019178,2]
[375079042,1753521039346,-696.51,0.00019178,2]
[375079044,1753521039356,-460.0,0.00019178,2]
[375079046,1753521039366,-460.0,0.00019178,2]
[375079048,1753521039377,-661.68,0.00019178,2]
[375079050,1753521039389,-460.0,0.00019178,2]
[375079052,1753521039398,-460.0,0.00019178,2]
[375079054,1753521039408,-460.0,0.00019178,2]
[375079056,1753521039418,-460.0,0.00019178,2]
[375079058,1753521039428,-457.53141451,0.00019178,2]
[375079060,1753521039437,-460.0,0.00019178,2]
[375079062,1753521039447,-460.0,0.00019178,2]
[375079064,1753521039456,-460.0,0.00019178,2]
[375079066,1753521039466,-415.86451539,0.00019178,2]
[375079068,1753521039476,-460.0,0.00019178,2]
[375079070,1753521039486,-460.0,0.00019178,2]
[375079072,1753521039495,-460.0,0.00019178,2]
[375079074,1753521039505,-460.0,0.00019178,2]
[375079076,1753521039514,-460.0,0.00019178,2]
[375079078,1753521039523,-463.27187243,0.00019178,2]
[375079080,1753521039533,-460.0,0.00019178,2]
[375079082,1753521039543,-460.0,0.00019178,2]
[375079084,1753521039553,-168.29699378,0.00019178,2]
[375079086,1753521039563,-460.0,0.00019178,2]
[375079088,1753521039572,-460.0,0.00019178,2]
[375079090,1753521039581,-460.0,0.00019178,2]
[375079091,1753521039591,-462.16582967,0.00019178,2]
[375079093,1753521039600,-460.0,0.00019178,2]
[375079095,1753521039609,-460.0,0.00019178,2]
[375079097,1753521039619,-460.0,0.00019178,2]
[375079099,1753521039629,-460.0,0.00019178,2]
[375079102,1753521039640,-582.45,0.00019178,2]
[375079104,1753521039651,-460.0,0.00019178,2]
[375079105,1753521039661,-460.0,0.00019178,2]
[375079108,1753521039671,-470.7276908,0.00019178,2]
[375079110,1753521039682,-460.0,0.00019178,2]
[375079112,1753521039692,-460.0,0.00019178,2]
[375079114,1753521039701,-468.15436374,0.00019178,2]
[375079116,1753521039711,-1010.11,0.00019178,2]
[375079118,1753521039721,-460.0,0.00019178,2]
[375079120,1753521039731,-460.0,0.00019178,2]
[375079122,1753521039741,-1151.17,0.00019178,2]
[375079124,1753521039751,-460.0,0.00019178,2]
[375079126,1753521039761,-460.0,0.00019178,2]
[375079128,1753521039770,-460.0,0.00019178,2]
[375079130,1753521039779,-460.0,0.00019178,2]
[375079132,1753521039789,-460.0,0.00019178,2]
[375079133,1753521039798,-460.0,0.00019178,2]
[375079136,1753521039808,-460.0,0.00019178,2]
[375079138,1753521039817,-460.0,0.00019178,2]
[375079140,1753521039827,-460.0,0.00019178,2]
[375079142,1753521039836,-460.0,0.00019178,2]
[375079143,1753521039846,-460.0,0.00019178,2]
[375079145,1753521039855,-460.0,0.00019178,2]
[375079148,1753521039864,-460.0,0.00019178,2]
[375079149,1753521039874,-460.0,0.00019178,2]
[375079151,1753521039884,-460.0,0.00019178,2]
[375079154,1753521039893,-653.71,0.00019178,2]
[375079156,1753521039903,-460.0,0.00019178,2]
[375079158,1753521039912,-460.0,0.00019178,2]
[375079160,1753521039922,-501.03902153,0.00019178,2]
[375079162,1753521039934,-460.0,0.00019178,2]
[375079164,1753521039944,-460.0,0.00019178,2]
[375079166,1753521039954,-460.0,0.00019178,2]
[375079168,1753521039963,-460.0,0.00019178,2]
[375079169,1753521039973,-460.0,0.00019178,2]
[375079172,1753521039983,-460.0,0.00019178,2]
[375079174,1753521039993,-1004.99,0.00019178,2]
[375079176,1753521040002,-460.0,0.00019178,2]
[375079177,1753521040011,-460.0,0.00019178,2]
[375079179,1753521040020,-460.0,0.00019178,2]
[375079181,1753521040029,-460.0,0.00019178,2]
[375079183,1753521040039,-460.0,0.00019178,2]
[375079185,1753521040048,-460.0,0.00019178,2]
[375079187,1753521040057,-460.0,0.00019178,2]
[375079189,1753521040066,-460.0,0.00019178,2]
[375079191,1753521040075,-460.0,0.00019178,2]
[375079193,1753521040084,-460.0,0.00019178,2]
[375079195,1753521040094,-460.0,0.00019178,2]
[375079197,1753521040104,-460.0,0.00019178,2]
[375079199,1753521040113,-460.0,0.00019178,2]
[375079201,1753521040122,-460.0,0.00019178,2]
[375079203,1753521040132,-460.0,0.00019178,2]
[375079205,1753521040142,-460.0,0.00019178,2]
[375079207,1753521040152,-460.2192266,0.00019178,2]
[375079209,1753521040162,-460.0,0.00019178,2]
[375079211,1753521040172,-460.0,0.00019178,2]
[375079213,1753521040182,-460.71515886,0.00019178,2]
[375079215,1753521040194,-490.1,0.00019178,2]
[375079217,1753521040204,-460.0,0.00019178,2]
[375079219,1753521040214,-440.52236543,0.00019178,2]
[375079221,1753521040224,-1166.11,0.00019178,2]
[375079223,1753521040233,-314.0210308,0.00019178,2]
[375079225,1753521040243,-460.0,0.00019178,2]
[375079227,1753521040252,-460.0,0.00019178,2]
[375079229,1753521040262,-460.0,0.00019178,2]
[375079231,1753521040271,-487.360106,0.00019178,2]
[375079233,1753521040280,-463.49149147,0.00019178,2]
[375079235,1753521040291,-460.0,0.00019178,2]
[375079237,1753521040300,-460.0,0.00019178,2]
[375079239,1753521040310,-1546.01,0.00019178,2]
[375079241,1753521040319,-460.0,0.00019178,2]
[375079243,1753521040329,-460.0,0.00019178,2]
[375079245,1753521040338,-929.76,0.00019178,2]
[375079247,1753521040347,-460.0,0.00019178,2]
[375079249,1753521040356,-460.0,0.00019178,2]
[375079251,1753521040365,-460.0,0.00019178,2]
[375079253,1753521040375,-464.53056616,0.00019178,2]
[375079255,1753521040384,-460.0,0.00019178,2]
[375079257,1753521040394,-565.51565083,0.00019178,2]
[375079259,1753521040403,-460.0,0.00019178,2]
[375079261,1753521040412,-460.0,0.00019178,2]
[375079263,1753521040421,-1670.13,0.00019178,2]
[375079265,1753521040430,-460.0,0.00019178,2]
[375079266,1753521040439,-460.0,0.00019178,2]
[375079268,1753521040448,-460.0,0.00019178,2]
[375079270,1753521040457,-3490.07,0.00019178,2]
[375079272,1753521040467,-460.0,0.00019178,2]
[375079274,1753521040476,-460.0,0.00019178,2]
[375079276,1753521040485,-460.0,0.00019178,2]
[375079278,1753521040494,-460.0,0.00019178,2]
[375079280,1753521040503,-460.0,0.00019178,2]
[375079282,1753521040513,-460.0,0.00019178,2]
[375079284,1753521040522,-460.0,0.00019178,2]
[375079286,1753521040531,-6039.12,0.00019178,2]
[375079288,1753521040540,-460.0,0.00019178,2]
[375079290,1753521040550,-460.0,0.00019178,2]
[375079292,1753521040563,-154.61584729,0.00019178,2]
[375079295,1753521040573,-460.0,0.00019178,2]
[375079297,1753521040582,-460.0,0.00019178,2]
[375079299,1753521040592,-653.2,0.00019178,2]
[375079301,1753521040601,-895.43,0.00019178,2]
[375079303,1753521040610,-500.0,0.00019178,2]
[375079305,1753521040619,-500.0,0.00019178,2]
[375079306,1753521040628,-268.42863191,0.00019178,2]
[375079308,1753521040638,-7433.74,0.00019178,2]
[375079310,1753521040647,-460.0,0.00019178,2]
[375079313,1753521040657,-460.0,0.00019178,2]
[375079323,1753521040745,-2748.12,0.00019178,2]
[375079325,1753521040754,-460.0,0.00019178,2]
[375079327,1753521040763,-460.0,0.00019178,2]
[375079329,1753521040772,-460.0,0.00019178,2]
[375079331,1753521040782,-1142.76,0.00019178,2]
[375079333,1753521040791,-460.0,0.00019178,2]
[375079335,1753521040800,-1106.36,0.00019178,2]
[375079337,1753521040809,-576.14,0.00019178,2]
[375079339,1753521040819,-460.0,0.00019178,2]
[375079341,1753521040827,-460.0,0.00019178,2]
[375079343,1753521040837,-460.0,0.00019178,2]
[375079345,1753521040846,-846.87,0.00019178,2]
[375079347,1753521040855,-460.0,0.00019178,2]
[375079348,1753521040864,-460.0,0.00019178,2]
[375079351,1753521040873,-3291.26,0.00019178,2]
[375079353,1753521040883,-434.79185302,0.00019178,2]
[375079355,1753521040892,-460.0,0.00019178,2]
[375079357,1753521040902,-460.0,0.00019178,2]
[375079359,1753521040911,-151.0,0.00019178,2]
[375079361,1753521040920,-460.0,0.00019178,2]
[375079363,1753521040933,-460.0,0.00019178,2]
[375079365,1753521040943,-460.0,0.00019178,2]
[375079367,1753521040951,-3222.68,0.00019178,2]
[375079369,1753521040961,-460.0,0.00019178,2]
[375079370,1753521040971,-1011.25,0.00019178,2]
[375079372,1753521040981,-441.2363975,0.00019178,2]
[375079374,1753521040990,-460.0,0.00019178,2]
[375079376,1753521041003,-460.0,0.00019178,2]
[375079378,1753521041013,-460.0,0.00019178,2]
[375079380,1753521041024,-460.0,0.00019178,2]
[375079382,1753521041034,-613.33,0.00019178,2]
[375079384,1753521041044,-460.0,0.00019178,2]
[375079386,1753521041054,-999.82,0.00019178,2]
[375079388,1753521041064,-527.57354801,0.00019178,2]
[375079390,1753521041073,-460.0,0.00019178,2]
[375079392,1753521041082,-191.39214408,0.00019178,2]
[375079394,1753521041093,-460.0,0.00019178,2]
[375079396,1753521041102,-460.0,0.00019178,2]
[375079398,1753521041110,-460.0,0.00019178,2]
[375079400,1753521041119,-4412.04,0.00019178,2]
[375079402,1753521041129,-460.0,0.00019178,2]
[375079404,1753521041138,-1039.09,0.00019178,2]
[375079406,1753521041147,-2349.84,0.00019178,2]
[375079408,1753521041156,-674.54,0.00019178,2]
[375079410,1753521041166,-1665.11,0.00019178,2]
[375079412,1753521041175,-624.29,0.00019178,2]
[375079414,1753521041185,-460.0,0.00019178,2]
[375079416,1753521041194,-463.33362544,0.00019178,2]
[375079418,1753521041203,-670.61,0.00019178,2]
[375079420,1753521041213,-460.0,0.00019178,2]
[375079422,1753521041223,-1990.0,0.00019178,2]
[375079424,1753521041232,-460.0,0.00019178,2]
[375079426,1753521041241,-563.64411547,0.00019178,2]
[375079428,1753521041250,-460.0,0.00019178,2]
[375079430,1753521041259,-460.0,0.00019178,2]
[375079432,1753521041269,-460.0,0.00019178,2]
[375079434,1753521041279,-460.0,0.00019178,2]
[375079436,1753521041290,-460.0,0.00019178,2]
[375079438,1753521041299,-3946.94,0.00019178,2]
[375079440,1753521041308,-460.0,0.00019178,2]
[375079442,1753521041318,-460.0,0.00019178,2]
[375079444,1753521041327,-460.0,0.00019178,2]
[375079446,1753521041336,-460.0,0.00019178,2]
[375079448,1753521041345,-460.0,0.00019178,2]
[375079450,1753521041355,-460.0,0.00019178,2]
[375079452,1753521041364,-734.29,0.00019178,2]
[375079454,1753521041373,-460.0,0.00019178,2]
[375079456,1753521041384,-460.0,0.00019178,2]
[375079458,1753521041393,-490.5797553,0.00019178,2]
[375079460,1753521041404,-460.0,0.00019178,2]
[375079462,1753521041413,-460.0,0.00019178,2]
[375079464,1753521041422,-460.0,0.00019178,2]
[375079466,1753521041431,-460.0,0.00019178,2]
[375079468,1753521041440,-460.0,0.00019178,2]
[375079470,1753521041449,-460.0,0.00019178,2]
[375079472,1753521041458,-460.0,0.00019178,2]
[375079474,1753521041468,-460.0,0.00019178,2]
[375079476,1753521041477,-460.0,0.00019178,2]